[Event "EYCC G10-ch 2024"]
[Site "Prague"]
[Date "2024.08.30"]
[Round "8.13"]
[White "Perea Fruet, Alba"]
[Black "Goralik, Zuzanna"]
[Result "0-1"]
[ECO "D09"]
[WhiteElo "1590"]
[BlackElo "1459"]
[Annotator "NA RC"]
[PlyCount "210"]
[EventDate "2024.08.19"]
[EventType "swiss"]
[EventCountry "CZE"]
[SourceTitle "playchess.com"]
[Source "ChessBase"]
[SourceQuality "1"]
[TimeControl "5400+30"]

1. d4 {[%emt 0:00:05]} d5 {[%emt 0:00:15]} 2. c4 {[%emt 0:00:15]} e5 {[%emt 0:00:26]} 3. dxe5 {[%emt 0:02:46]} d4 {[%emt 0:00:17]} 4. Nf3 {[%emt 0:00:28]} Nc6 {[%emt 0:00:46]} 5. g3 {[%emt 0:03:25]} Nge7 {[%emt 0:01:03]} 6. Nbd2 {[%emt 0:01:04]} Ng6 {[%emt 0:03:04]} 7. Bg2 {[%emt 0:03:32]} Ngxe5 {[%emt 0:01:38]} 8. O-O {[%emt 0:02:43]} Nxf3+ {[%emt 0:08:59]} 9. Nxf3 {[%emt 0:02:19]} Bc5 {[%emt 0:00:34]} 10. b3 {[%emt 0:02:33]} O-O {[%emt 0:01:02]} 11. Bb2 {[%emt 0:02:20]} Bf5 {[%emt 0:05:21]} 12. a3 {[%emt 0:02:18]} a5 {[%emt 0:01:04]} 13. Qd2 {[%emt 0:02:40]} Qd7 {[%emt 0:02:09]} 14. Rfd1 {[%emt 0:01:57]} Rad8 {[%emt 0:02:04]} 15. Qg5 {[%emt 0:06:05]} h6 {[%emt 0:03:22]} 16. Qc1 {[%emt 0:03:01]} Qe6 {[%emt 0:04:21]} 17. Rd2 {[%emt 0:02:54]} Rd7 {[%emt 0:04:13]} 18. Qd1 {[%emt 0:04:14]} Rfd8 {[%emt 0:01:58]} 19. Qf1 {[%emt 0:02:56]} Qe7 {[%emt 0:05:30]} 20. Nh4 {[%emt 0:03:52]} Bh7 {[%emt 0:02:35]} 21. Nf3 {[%emt 0:04:03]} Be4 {[%emt 0:10:21]} 22. Ne1 {[%emt 0:04:46]} Bxg2 {[%emt 0:00:56]} 23. Qxg2 {[%emt 0:02:02]} Qg5 {[%emt 0:07:05]} 24. Rad1 {[%emt 0:02:42]} Qf5 {[%emt 0:04:54]} 25. Nd3 {[%emt 0:06:34]} Be7 {[%emt 0:02:24]} 26. h4 {[%emt 0:02:33]} Bd6 27. Ne1 {[%emt 0:04:21]} Be7 {[%emt 0:07:39]} 28. Nf3 {[%emt 0:01:50]} Bc5 {[%emt 0:01:53]} 29. Rd3 {[%emt 0:02:50]} Rd6 {[%emt 0:01:58]} 30. Qf1 {[%emt 0:02:40]} R8d7 {[%emt 0:01:38]} 31. R1d2 {[%emt 0:01:34]} Qe4 {[%emt 0:01:42]} 32. Qg2 {[%emt 0:02:09]} Ba7 {[%emt 0:02:08]} 33. Ne1 {[%emt 0:00:55]} Qxg2+ {[%emt 0:01:07]} 34. Kxg2 {[%emt 0:01:31]} Ne5 {[%emt 0:00:36]} 35. Rd1 {[%emt 0:01:44]} Nxd3 {[%emt 0:00:18]} 36. Nxd3 {[%emt 0:00:30]} Re7 {[%emt 0:01:21]} 37. Rd2 {[%emt 0:00:47]} c5 {[%emt 0:01:23]} 38. Kf1 {[%emt 0:00:53]} b6 {[%emt 0:02:08]} 39. a4 {[%emt 0:00:41]} g5 {[%emt 0:00:53]} 40. hxg5 {[%emt 0:01:37]} hxg5 {[%emt 0:00:05]} 41. Kg2 {[%emt 0:00:38]} Rde6 {[%emt 0:01:10]} 42. Nc1 {[%emt 0:00:27]} Rh6 {[%emt 0:01:02]} 43. Rd3 {[%emt 0:01:14]} f6 {[%emt 0:01:08]} 44. e3 {[%emt 0:03:02]} dxe3 {[%emt 0:00:48]} 45. fxe3 {[%emt 0:00:27]} Kg7 {[%emt 0:06:39]} 46. Rd5 {[%emt 0:00:59]} Kg6 {[%emt 0:00:29]} 47. Rd6 {[%emt 0:01:22]} Kf5 {[%emt 0:00:25]} 48. Nd3 {[%emt 0:02:40]} g4 {[%emt 0:00:56]} 49. Rd5+ {[%emt 0:00:20]} Kg6 {[%emt 0:00:39]} 50. Nf4+ {[%emt 0:01:03]} Kf7 {[%emt 0:00:15]} 51. Rf5 {[%emt 0:01:58]} Rxe3 {[%emt 0:00:38]} 52. Rd5 {[%emt 0:00:37]} Re7 {[%emt 0:00:29]} 53. Rd6 {[%emt 0:00:39]} Kg7 {[%emt 0:00:32]} 54. Ne6+ {[%emt 0:00:29]} Kg6 {[%emt 0:00:20]} 55. Nf4+ {[%emt 0:00:20]} Kf5 {[%emt 0:00:21]} 56. Rd5+ {[%emt 0:00:39]} Ke4 {[%emt 0:00:13]} 57. Rd2 {[%emt 0:00:21]} Reh7 {[%emt 0:00:27]} 58. Re2+ {[%emt 0:01:29]} Kf5 {[%emt 0:00:06]} 59. Kf2 {[%emt 0:00:40]} Rh2+ {[%emt 0:00:18]} 60. Ng2 {[%emt 0:00:08]} R7h3 {[%emt 0:00:48]} 61. Ke1 {[%emt 0:00:37]} Rxg3 {[%emt 0:00:58]} 62. Rf2+ {[%emt 0:00:45]} Ke4 {[%emt 0:00:36]} 63. Re2+ {[%emt 0:00:44]} Kf5 {[%emt 0:00:39]} 64. Rf2+ {[%emt 0:00:11]} Ke6 {[%emt 0:00:41]} 65. Nf4+ {[%emt 0:00:30]} Kf5 {[%emt 0:00:33]} 66. Ne2+ {[%emt 0:00:10]} Rxf2 {[%emt 0:00:09]} 67. Nxg3+ {[%emt 0:00:12]} Kf4 {[%emt 0:00:35]} 68. Kxf2 {[%emt 0:00:07]} f5 {[%emt 0:00:18]} 69. Bg7 {[%emt 0:00:23]} Kg5 {[%emt 0:00:45]} 70. Bb2 {[%emt 0:00:28]} Bb8 {[%emt 0:00:48]} 71. Ne2 {[%emt 0:00:17]} f4 {[%emt 0:00:13]} 72. Bc1 {[%emt 0:00:35]} Kf5 {[%emt 0:00:19]} 73. Nc3 {[%emt 0:00:20]} f3 {[%emt 0:00:43]} 74. Nd5 {[%emt 0:00:15]} Ke4 {[%emt 0:00:48]} 75. Be3 {[%emt 0:01:09]} g3+ {[%emt 0:00:28]} 76. Kg1 {[%emt 0:00:19]} Kd3 {[%emt 0:00:24]} 77. Kf1 {[%emt 0:00:55]} Kc2 {[%emt 0:00:38]} 78. Nxb6 {[%emt 0:00:23]} Kxb3 {[%emt 0:00:13]} 79. Bxc5 {[%emt 0:00:22]} Ba7 {[%emt 0:00:31]} 80. Be3 {[%emt 0:00:22]} Bb8 {[%emt 0:00:35]} 81. c5 {[%emt 0:00:11]} Kc3 {[%emt 0:00:20]} 82. Bg1 {[%emt 0:00:40]} f2 {[%emt 0:00:35]} 83. Bxf2 {[%emt 0:00:07]} gxf2 {[%emt 0:00:03]} 84. Kxf2 {[%emt 0:00:05]} Kb4 {[%emt 0:00:53]} 85. c6 {[%emt 0:00:30]} Ba7 {[%emt 0:00:22]} 86. c7 {[%emt 0:00:09]} Bxb6+ {[%emt 0:00:12]} 87. Ke2 {[%emt 0:00:05]} Bxc7 {[%emt 0:00:13]} 88. Kd2 {[%emt 0:00:05]} Kxa4 {[%emt 0:00:26]} 89. Kc2 {[%emt 0:00:06]} Ka3 {[%emt 0:00:27]} 90. Kb1 {[%emt 0:00:08]} Be5 {[%emt 0:00:17]} 91. Kc2 {[%emt 0:00:12]} Ka2 {[%emt 0:00:30]} 92. Kc1 {[%emt 0:00:05]} Bb2+ {[%emt 0:00:13]} 93. Kc2 {[%emt 0:00:07]} a4 {[%emt 0:00:15]} 94. Kd1 {[%emt 0:00:05]} Kb1 {[%emt 0:00:12]} 95. Kd2 {[%emt 0:00:13]} a3 {[%emt 0:00:07]} 96. Kd3 {[%emt 0:00:06]} a2 {[%emt 0:00:05]} 97. Kc4 {[%emt 0:00:03]} a1=Q {[%emt 0:00:13]} 98. Kd5 {[%emt 0:00:08]} Qa4 {[%emt 0:00:17]} 99. Kc5 {[%emt 0:00:07]} Qd4+ {[%emt 0:00:36]} 100. Kb5 {[%emt 0:00:08]} Qc3 {[%emt 0:00:18]} 101. Ka6 {[%emt 0:00:06]} Qb4 {[%emt 0:00:19]} 102. Ka7 {[%emt 0:00:20]} Be5 {[%emt 0:01:25]} 103. Ka6 {[%emt 0:00:12]} Bc7 {[%emt 0:00:22]} 104. Ka7 {[%emt 0:00:13]} Qb6+ {[%emt 0:00:07]} 105. Ka8 {[%emt 0:00:05]} Qb8# {[%emt 0:00:08]} 0-1

[Event "EYCC G10-ch 2024"]
[Site "Prague"]
[Date "2024.08.30"]
[Round "8.14"]
[White "Babazade, Khadija"]
[Black "Macakova, Bianka"]
[Result "0-1"]
[ECO "A52"]
[WhiteElo "1509"]
[BlackElo "1568"]
[Annotator "NA RC"]
[PlyCount "104"]
[EventDate "2024.08.19"]
[EventType "swiss"]
[EventCountry "CZE"]
[SourceTitle "playchess.com"]
[Source "ChessBase"]
[SourceQuality "1"]
[TimeControl "5400+30"]

1. d4 {[%emt 0:00:03]} Nf6 {[%emt 0:00:16]} 2. c4 {[%emt 0:00:19]} e5 {[%emt 0:00:30]} 3. dxe5 {[%emt 0:01:53]} Ng4 {[%emt 0:00:57]} 4. Nf3 {[%emt 0:00:08]} Bc5 {[%emt 0:02:04]} 5. e3 {[%emt 0:01:14]} Nc6 {[%emt 0:03:07]} 6. b3 {[%emt 0:10:13]} O-O {[%emt 0:20:26]} 7. Bb2 {[%emt 0:10:31]} Re8 {[%emt 0:20:49]} 8. Bd3 {[%emt 0:11:25]} h6 {[%emt 0:16:23]} 9. O-O {[%emt 0:05:06]} Ngxe5 {[%emt 0:10:50]} 10. Nxe5 {[%emt 0:01:06]} Nxe5 {[%emt 0:00:54]} 11. Bc2 {[%emt 0:16:02]} a5 {[%emt 0:05:02]} 12. Qh5 {[%emt 0:04:38]} d6 {[%emt 0:02:58]} 13. Rd1 {[%emt 0:03:09]} Bg4 {[%emt 0:02:16]} 14. Qxe5 {[%emt 0:08:31]} Rxe5 {[%emt 0:00:30]} 15. Rf1 {[%emt 0:04:13]} Rg5 {[%emt 0:00:47]} 16. Kh1 {[%emt 0:00:59]} Rh5 {[%emt 0:00:54]} 17. g3 {[%emt 0:01:21]} Bf3+ {[%emt 0:00:22]} 18. Kg1 {[%emt 0:00:07]} Qd7 {[%emt 0:00:46]} 19. Nd2 {[%emt 0:00:36]} Be2 {[%emt 0:01:01]} 20. h4 {[%emt 0:03:31]} Bxf1 {[%emt 0:01:28]} 21. Kxf1 {[%emt 0:00:01]} Re8 {[%emt 0:00:48]} 22. Ne4 {[%emt 0:00:55]} Qg4 {[%emt 0:01:08]} 23. Nxc5 {[%emt 0:01:23]} Rxc5 {[%emt 0:00:24]} 24. Bd4 {[%emt 0:00:12]} Rc6 {[%emt 0:00:47]} 25. a3 {[%emt 0:00:25]} d5 {[%emt 0:00:42]} 26. c5 {[%emt 0:00:53]} f5 {[%emt 0:00:58]} 27. b4 {[%emt 0:00:25]} Rce6 {[%emt 0:00:49]} 28. bxa5 {[%emt 0:01:00]} f4 {[%emt 0:00:39]} 29. gxf4 {[%emt 0:00:53]} Qxh4 {[%emt 0:00:44]} 30. Rb1 {[%emt 0:01:09]} Ra6 {[%emt 0:01:04]} 31. Rxb7 {[%emt 0:00:26]} Rxa5 {[%emt 0:01:33]} 32. Rxc7 {[%emt 0:01:33]} Qh1+ {[%emt 0:00:22]} 33. Ke2 {[%emt 0:00:09]} Qg2 {[%emt 0:00:41]} 34. a4 {[%emt 0:01:21]} Qg4+ {[%emt 0:00:38]} 35. Kf1 {[%emt 0:00:07]} Rc8 {[%emt 0:01:15]} 36. Rb7 {[%emt 0:01:21]} h5 {[%emt 0:00:50]} 37. f5 {[%emt 0:02:14]} Raxc5 {[%emt 0:00:47]} 38. Bxc5 {[%emt 0:00:11]} Rxc5 {[%emt 0:00:19]} 39. Rb8+ {[%emt 0:00:12]} Kf7 {[%emt 0:00:19]} 40. Rb7+ {[%emt 0:00:31]} Ke8 {[%emt 0:00:29]} 41. Rb8+ {[%emt 0:03:55]} Kd7 {[%emt 0:00:26]} 42. Rb7+ {[%emt 0:00:05]} Kc8 {[%emt 0:00:27]} 43. Rb2 {[%emt 0:00:05]} h4 {[%emt 0:00:55]} 44. Ke1 {[%emt 0:01:40]} h3 {[%emt 0:00:35]} 45. Kd2 {[%emt 0:00:07]} h2 {[%emt 0:00:45]} 46. Rb1 {[%emt 0:00:05]} Qf3 {[%emt 0:00:36]} 47. Bd3 {[%emt 0:00:41]} Ra5 {[%emt 0:01:01]} 48. Rc1+ {[%emt 0:01:08]} Kd7 {[%emt 0:00:26]} 49. Be2 {[%emt 0:00:10]} Qg2 {[%emt 0:00:31]} 50. f6 {[%emt 0:00:49]} gxf6 {[%emt 0:00:21]} 51. Bb5+ {[%emt 0:00:20]} Rxb5 {[%emt 0:00:19]} 52. axb5 {[%emt 0:00:04]} h1=Q {[%emt 0:00:19]} 0-1

[Event "EYCC G10-ch 2024"]
[Site "Prague"]
[Date "2024.08.31"]
[Round "9.1"]
[White "Jaksa, Ema"]
[Black "Chen, Yuefan"]
[Result "1-0"]
[ECO "B25"]
[WhiteElo "1551"]
[BlackElo "1682"]
[Annotator "NA RC COMBH"]
[PlyCount "141"]
[EventDate "2024.08.19"]
[EventType "swiss"]
[EventCountry "CZE"]
[SourceTitle "playchess.com"]
[Source "ChessBase"]
[SourceQuality "1"]
[TimeControl "5400+30"]

1. e4 {[%emt 0:00:37]} c5 {[%emt 0:00:05]} 2. Nc3 {[%emt 0:00:51]} d6 {[%emt 0:00:10]} 3. g3 {[%emt 0:01:06]} Nc6 {[%emt 0:00:22]} 4. Bg2 {[%emt 0:02:03]} g6 {[%emt 0:00:43]} 5. d3 {[%emt 0:01:24]} Bg7 {[%emt 0:00:51]} 6. f4 {[%emt 0:02:56]} e6 {[%emt 0:00:39]} 7. Nf3 {[%emt 0:01:09]} Nge7 {[%emt 0:00:49]} 8. O-O {[%emt 0:01:33]} O-O {[%emt 0:00:18]} 9. Be3 {[%emt 0:04:30]} Rb8 {[%emt 0:03:29]} 10. Qd2 {[%emt 0:09:22]} b6 {[%emt 0:02:28]} 11. g4 {[%emt 0:05:43]} f5 {[%emt 0:00:37]} 12. g5 {[%emt 0:03:12]} d5 {[%emt 0:06:08]} 13. exd5 {[%emt 0:03:42]} Nxd5 {[%emt 0:06:54]} 14. Nxd5 {[%emt 0:02:30]} exd5 {[%emt 0:00:11]} 15. d4 {[%emt 0:02:30]} c4 {[%emt 0:01:31]} 16. c3 {[%emt 0:02:39]} Be6 {[%emt 0:04:17]} 17. Rae1 {[%emt 0:03:03]} Qc7 {[%emt 0:03:50]} 18. h4 {[%emt 0:08:05]} b5 {[%emt 0:02:49]} 19. Ne5 {[%emt 0:04:27]} Rbd8 {[%emt 0:03:59]} 20. Qe2 {[%emt 0:03:40]} Nxe5 {[%emt 0:11:10]} 21. dxe5 {[%emt 0:01:49]} Rfe8 {[%emt 0:02:26]} 22. Qf2 {[%emt 0:03:30]} Rd7 {[%emt 0:00:14]} 23. Bc5 {[%emt 0:01:49]} Bf8 {[%emt 0:01:35]} 24. Bxf8 {[%emt 0:04:09]} Rxf8 {[%emt 0:00:08]} 25. Rd1 {[%emt 0:01:48]} Rc8 {[%emt 0:01:29]} 26. Qe2 {[%emt 0:01:22]} Qc5+ {[%emt 0:01:20]} 27. Qf2 {[%emt 0:00:53]} Qxf2+ {[%emt 0:00:14]} 28. Rxf2 {[%emt 0:00:19]} Kf7 {[%emt 0:00:27]} 29. Rfd2 {[%emt 0:00:19]} Rcd8 {[%emt 0:01:15]} 30. Kf2 {[%emt 0:00:35]} Ke7 {[%emt 0:00:30]} 31. Ke3 {[%emt 0:00:24]} a5 {[%emt 0:01:03]} 32. a3 {[%emt 0:01:14]} a4 {[%emt 0:00:08]} 33. Rh1 {[%emt 0:01:41]} Kf7 {[%emt 0:00:54]} 34. h5 {[%emt 0:00:45]} Kg7 {[%emt 0:01:40]} 35. hxg6 {[%emt 0:00:36]} hxg6 {[%emt 0:00:04]} 36. Bf3 {[%emt 0:00:46]} Bg8 {[%emt 0:00:31]} 37. Kd4 {[%emt 0:00:52]} Rc8 {[%emt 0:02:31]} 38. Re2 {[%emt 0:00:37]} Be6 {[%emt 0:00:48]} 39. Reh2 {[%emt 0:02:41]} Bg8 {[%emt 0:01:10]} 40. e6 {[%emt 0:01:49]} Bxe6 {[%emt 0:05:24]} 41. Rh7+ {[%emt 0:00:30]} Kf8 {[%emt 0:01:55]} 42. Rxd7 Bxd7 {[%emt 0:00:10]} 43. Rh8+ {[%emt 0:00:57]} Ke7 {[%emt 0:00:28]} 44. Rxc8 {[%emt 0:00:20]} Bxc8 {[%emt 0:00:05]} 45. Bxd5 {[%emt 0:00:15]} Bd7 {[%emt 0:00:57]} 46. Kc5 {[%emt 0:00:45]} Be8 {[%emt 0:00:04]} 47. Bc6 {[%emt 0:00:16]} Bxc6 {[%emt 0:00:07]} 48. Kxc6 {[%emt 0:00:04]} Ke6 {[%emt 0:00:02]} 49. Kc5 {[%emt 0:00:20]} Ke7 {[%emt 0:00:14]} 50. Kxb5 {[%emt 0:00:11]} Ke6 {[%emt 0:00:02]} 51. Kxc4 {[%emt 0:00:12]} Kd6 {[%emt 0:00:03]} 52. Kd4 {[%emt 0:00:10]} Ke6 {[%emt 0:00:05]} 53. c4 {[%emt 0:00:09]} Kd6 {[%emt 0:00:02]} 54. c5+ {[%emt 0:00:12]} Kc6 {[%emt 0:00:03]} 55. Kc4 {[%emt 0:00:06]} Kc7 {[%emt 0:00:04]} 56. Kd5 {[%emt 0:00:05]} Kd7 {[%emt 0:00:03]} 57. c6+ {[%emt 0:00:28]} Kc7 {[%emt 0:00:03]} 58. Kc5 {[%emt 0:00:17]} Kc8 {[%emt 0:00:04]} 59. Kd6 {[%emt 0:00:05]} Kd8 {[%emt 0:00:04]} 60. Ke6 {[%emt 0:00:17]} Kc7 {[%emt 0:00:04]} 61. Kf6 {[%emt 0:00:04]} Kxc6 {[%emt 0:00:42]} 62. Kxg6 {[%emt 0:00:04]} Kc5 {[%emt 0:00:04]} 63. Kxf5 {[%emt 0:00:05]} Kc4 {[%emt 0:00:03]} 64. g6 {[%emt 0:00:04]} Kb3 {[%emt 0:00:02]} 65. g7 {[%emt 0:00:07]} Kxb2 {[%emt 0:00:05]} 66. g8=Q {[%emt 0:00:52]} Kxa3 {[%emt 0:00:03]} 67. Qb8 {[%emt 0:00:08]} Ka2 {[%emt 0:00:03]} 68. Ke4 {[%emt 0:00:11]} a3 {[%emt 0:00:04]} 69. Kd3 {[%emt 0:00:13]} Ka1 {[%emt 0:00:04]} 70. Kc2 {[%emt 0:00:08]} a2 {[%emt 0:00:04]} 71. Qb2# {[%emt 0:00:06]} 1-0

[Event "EYCC G10-ch 2024"]
[Site "Prague"]
[Date "2024.08.31"]
[Round "9.2"]
[White "Russieva, Svitlana"]
[Black "Ahmadli, Mehriban"]
[Result "1-0"]
[ECO "B34"]
[WhiteElo "1597"]
[BlackElo "1646"]
[Annotator "NA RC COMBH"]
[PlyCount "175"]
[EventDate "2024.08.19"]
[EventType "swiss"]
[EventCountry "CZE"]
[SourceTitle "playchess.com"]
[Source "ChessBase"]
[SourceQuality "1"]
[TimeControl "5400+30"]

1. e4 {[%emt 0:00:03]} c5 {[%emt 0:00:00]} 2. Nc3 {[%emt 0:00:07]} Nc6 {[%emt 0:00:08]} 3. Nf3 {[%emt 0:01:06]} g6 {[%emt 0:00:20]} 4. d4 {[%emt 0:01:35]} cxd4 {[%emt 0:00:12]} 5. Nxd4 {[%emt 0:00:07]} Bg7 {[%emt 0:00:08]} 6. Be3 {[%emt 0:01:15]} Nf6 {[%emt 0:12:49]} 7. h3 {[%emt 0:03:34]} O-O {[%emt 0:07:25]} 8. Qd2 {[%emt 0:04:05]} a6 {[%emt 0:06:40]} 9. O-O-O {[%emt 0:02:41]} Nxd4 {[%emt 0:01:28]} 10. Bxd4 {[%emt 0:00:55]} d6 {[%emt 0:01:24]} 11. g4 {[%emt 0:04:11]} b5 {[%emt 0:06:11]} 12. f3 {[%emt 0:14:09]} Nd7 {[%emt 0:03:50]} 13. Bxg7 {[%emt 0:02:17]} Kxg7 {[%emt 0:01:20]} 14. h4 {[%emt 0:01:26]} h6 {[%emt 0:01:59]} 15. h5 {[%emt 0:03:15]} g5 {[%emt 0:00:20]} 16. f4 {[%emt 0:00:33]} f6 {[%emt 0:03:13]} 17. fxg5 {[%emt 0:00:49]} fxg5 {[%emt 0:01:44]} 18. Qd4+ {[%emt 0:04:27]} Ne5 {[%emt 0:06:12]} 19. Be2 {[%emt 0:02:58]} Be6 {[%emt 0:03:00]} 20. Rhf1 {[%emt 0:04:22]} Qd7 {[%emt 0:01:40]} 21. Nd5 {[%emt 0:01:58]} Bxd5 {[%emt 0:17:20]} 22. exd5 {[%emt 0:07:24]} Rf6 {[%emt 0:06:59]} 23. Rxf6 {[%emt 0:02:45]} exf6 {[%emt 0:00:18]} 24. Rf1 {[%emt 0:01:28]} Rf8 {[%emt 0:02:55]} 25. Qe4 {[%emt 0:02:11]} Qf7 {[%emt 0:02:01]} 26. a4 {[%emt 0:01:45]} bxa4 {[%emt 0:01:31]} 27. Qxa4 {[%emt 0:02:05]} Qxd5 {[%emt 0:01:14]} 28. Bxa6 {[%emt 0:09:30]} Ra8 {[%emt 0:04:09]} 29. Rd1 {[%emt 0:00:32]} Qc5 {[%emt 0:02:27]} 30. Qe4 {[%emt 0:01:31]} Rd8 {[%emt 0:00:54]} 31. Bd3 {[%emt 0:00:48]} Nxd3+ {[%emt 0:00:19]} 32. Rxd3 {[%emt 0:00:19]} Kf7 {[%emt 0:02:11]} 33. Re3 {[%emt 0:01:04]} Rc8 {[%emt 0:02:45]} 34. Qg6+ {[%emt 0:02:30]} Kf8 {[%emt 0:00:09]} 35. Qxf6+ {[%emt 0:00:25]} Kg8 {[%emt 0:00:10]} 36. Qg6+ {[%emt 0:00:16]} Kh8 {[%emt 0:00:09]} 37. Qxh6+ {[%emt 0:00:13]} Kg8 {[%emt 0:00:05]} 38. Qg6+ {[%emt 0:00:07]} Kh8 {[%emt 0:00:16]} 39. Re8+ {[%emt 0:02:41]} Rxe8 {[%emt 0:00:01]} 40. Qxe8+ {[%emt 0:00:07]} Kg7 {[%emt 0:00:55]} 41. Qg6+ {[%emt 0:00:16]} Kh8 {[%emt 0:00:30]} 42. Qd3 {[%emt 0:01:02]} Qg1+ {[%emt 0:00:14]} 43. Qd1 {[%emt 0:00:07]} Qe3+ {[%emt 0:00:31]} 44. Kb1 {[%emt 0:00:05]} Qe5 {[%emt 0:00:17]} 45. Qd2 {[%emt 0:00:18]} Kg8 {[%emt 0:00:31]} 46. Qc3 {[%emt 0:00:08]} Qf4 {[%emt 0:00:44]} 47. Qc8+ {[%emt 0:01:02]} Kg7 {[%emt 0:00:24]} 48. Qd7+ {[%emt 0:01:34]} Kg8 {[%emt 0:00:14]} 49. Qe6+ {[%emt 0:00:31]} Kg7 {[%emt 0:00:18]} 50. b3 {[%emt 0:01:02]} Qf1+ {[%emt 0:00:20]} 51. Kb2 {[%emt 0:00:10]} Qf4 {[%emt 0:00:11]} 52. Qd7+ {[%emt 0:00:47]} Kg8 {[%emt 0:00:13]} 53. Qc8+ {[%emt 0:00:03]} Kg7 {[%emt 0:00:15]} 54. Qc3+ {[%emt 0:00:03]} Kh7 {[%emt 0:00:29]} 55. Qc7+ {[%emt 0:00:11]} Kh8 {[%emt 0:01:12]} 56. h6 {[%emt 0:00:56]} Qf8 {[%emt 0:01:21]} 57. Qg7+ {[%emt 0:00:21]} Qxg7+ {[%emt 0:00:01]} 58. hxg7+ {[%emt 0:00:09]} Kxg7 {[%emt 0:00:01]} 59. Kc3 {[%emt 0:00:08]} Kf6 {[%emt 0:00:07]} 60. Kd4 {[%emt 0:00:07]} Ke6 {[%emt 0:00:04]} 61. b4 {[%emt 0:00:20]} d5 {[%emt 0:00:06]} 62. b5 {[%emt 0:00:36]} Kd6 {[%emt 0:00:05]} 63. b6 {[%emt 0:00:22]} Kc6 {[%emt 0:00:05]} 64. b7 {[%emt 0:00:08]} Kxb7 {[%emt 0:00:05]} 65. Kxd5 {[%emt 0:00:07]} Kc7 {[%emt 0:00:04]} 66. Kc5 {[%emt 0:00:07]} Kd7 {[%emt 0:00:04]} 67. c3 {[%emt 0:00:10]} Kc7 {[%emt 0:00:04]} 68. c4 {[%emt 0:00:16]} Kd7 {[%emt 0:00:08]} 69. Kb6 {[%emt 0:00:06]} Ke6 {[%emt 0:00:04]} 70. c5 {[%emt 0:00:17]} Ke5 {[%emt 0:00:04]} 71. c6 {[%emt 0:00:39]} Kf4 {[%emt 0:00:03]} 72. c7 {[%emt 0:00:11]} Kxg4 {[%emt 0:00:07]} 73. c8=Q+ {[%emt 0:00:25]} Kf3 {[%emt 0:00:05]} 74. Qc5 {[%emt 0:00:11]} g4 {[%emt 0:00:06]} 75. Qg1 {[%emt 0:00:20]} g3 {[%emt 0:00:04]} 76. Kc5 {[%emt 0:00:23]} g2 {[%emt 0:00:07]} 77. Kd4 {[%emt 0:00:13]} Kf4 {[%emt 0:00:03]} 78. Qxg2 {[%emt 0:00:46]} Kf5 {[%emt 0:00:06]} 79. Kd5 {[%emt 0:00:29]} Kf6 {[%emt 0:00:01]} 80. Kd6 {[%emt 0:00:07]} Kf5 {[%emt 0:00:08]} 81. Qe2 {[%emt 0:00:31]} Kf4 {[%emt 0:00:06]} 82. Qe5+ {[%emt 0:00:16]} Kg4 {[%emt 0:00:18]} 83. Qf6 {[%emt 0:00:10]} Kh5 {[%emt 0:00:06]} 84. Qg7 {[%emt 0:00:21]} Kh4 {[%emt 0:00:05]} 85. Ke5 {[%emt 0:00:07]} Kh3 {[%emt 0:00:04]} 86. Kf4 {[%emt 0:00:05]} Kh2 {[%emt 0:00:05]} 87. Kf3 {[%emt 0:00:07]} Kh1 {[%emt 0:00:05]} 88. Qg2# {[%emt 0:00:08]} 1-0

[Event "EYCC G10-ch 2024"]
[Site "Prague"]
[Date "2024.08.31"]
[Round "9.3"]
[White "Rzadkowska, Lila"]
[Black "Constantin-Ciuntu, Anne-Sophie"]
[Result "1-0"]
[ECO "D40"]
[WhiteElo "1794"]
[BlackElo "1641"]
[Annotator "NA RC COMBH"]
[PlyCount "61"]
[EventDate "2024.08.19"]
[EventType "swiss"]
[EventCountry "CZE"]
[SourceTitle "playchess.com"]
[Source "ChessBase"]
[SourceQuality "1"]
[TimeControl "5400+30"]

1. c4 {[%emt 0:00:03]} e6 {[%emt 0:00:07]} 2. Nc3 {[%emt 0:00:25]} Nf6 {[%emt 0:00:18]} 3. Nf3 {[%emt 0:01:50]} d5 {[%emt 0:00:37]} 4. d4 {[%emt 0:01:24]} c5 {[%emt 0:00:36]} 5. e3 {[%emt 0:03:18]} Nc6 {[%emt 0:02:41]} 6. a3 {[%emt 0:00:42]} b6 {[%emt 0:02:16]} 7. cxd5 {[%emt 0:03:01]} exd5 {[%emt 0:00:31]} 8. Bb5 {[%emt 0:00:31]} Bb7 {[%emt 0:03:38]} 9. Ne5 {[%emt 0:07:55]} Rc8 {[%emt 0:01:31]} 10. Qa4 {[%emt 0:01:34]} Qc7 {[%emt 0:02:11]} 11. Qxa7 {[%emt 0:08:00]} Bd6 {[%emt 0:06:23]} 12. Bxc6+ {[%emt 0:01:24]} Bxc6 {[%emt 0:00:14]} 13. Qxc7 {[%emt 0:00:08]} Rxc7 {[%emt 0:00:10]} 14. Nxc6 {[%emt 0:00:25]} Rxc6 {[%emt 0:00:03]} 15. O-O {[%emt 0:01:38]} c4 {[%emt 0:03:35]} 16. f3 {[%emt 0:04:03]} O-O {[%emt 0:03:13]} 17. e4 {[%emt 0:03:25]} dxe4 {[%emt 0:01:10]} 18. fxe4 {[%emt 0:00:33]} Bb8 {[%emt 0:02:59]} 19. e5 {[%emt 0:01:19]} Nd7 {[%emt 0:01:39]} 20. Nd5 {[%emt 0:04:33]} Re8 {[%emt 0:04:49]} 21. Bg5 {[%emt 0:00:20]} Rce6 {[%emt 0:02:25]} 22. Rad1 {[%emt 0:12:34]} h6 {[%emt 0:09:06]} 23. Bh4 {[%emt 0:00:40]} g5 {[%emt 0:02:44]} 24. Bg3 {[%emt 0:01:13]} Rf8 {[%emt 0:13:48]} 25. Ne3 {[%emt 0:04:19]} f6 {[%emt 0:02:03]} 26. d5 {[%emt 0:00:39]} Ree8 {[%emt 0:01:08]} 27. e6 {[%emt 0:01:16]} Bxg3 {[%emt 0:01:13]} 28. hxg3 {[%emt 0:01:04]} Ne5 {[%emt 0:14:57]} 29. Nf5 {[%emt 0:00:36]} Ng4 {[%emt 0:01:00]} 30. e7 {[%emt 0:00:40]} Rf7 {[%emt 0:00:50]} 31. d6 1-0